[Event "Early-Titled-Tuesday-Blitz-February-27-2024"]
[Site "Chess.com"]
[Date "2024.02.27"]
[Round "5"]
[White "kingofthenil"]
[Black "Firouzja2003"]
[Result "1/2-1/2"]
[WhiteElo "2747"]
[BlackElo "3070"]
[TimeControl "180+1"]
[EndTime "8:56:47 PST"]
[Termination "Game drawn by stalemate"]

1. e4 {[%clk 0:03:00.9]} 1... c5 {[%clk 0:02:17.1]} 2. d3 {[%clk 0:02:57]} 2...
Nc6 {[%clk 0:02:16.7]} 3. g3 {[%clk 0:02:57.9]} 3... g6 {[%clk 0:02:17]} 4. Bg2
{[%clk 0:02:58]} 4... Bg7 {[%clk 0:02:17.9]} 5. f4 {[%clk 0:02:58.9]} 5... d6
{[%clk 0:02:18.5]} 6. Nf3 {[%clk 0:02:59.8]} 6... Nf6 {[%clk 0:02:15.7]} 7. O-O
{[%clk 0:03:00.1]} 7... Rb8 {[%clk 0:02:15.1]} 8. Nc3 {[%clk 0:02:59]} 8... O-O
{[%clk 0:02:11.4]} 9. h3 {[%clk 0:02:59.4]} 9... b5 {[%clk 0:02:09.5]} 10. g4
{[%clk 0:03:00.1]} 10... b4 {[%clk 0:02:03.3]} 11. Ne2 {[%clk 0:03:00.5]} 11...
Nd7 {[%clk 0:01:58]} 12. Rb1 {[%clk 0:03:00.4]} 12... a5 {[%clk 0:01:57.8]} 13.
Be3 {[%clk 0:02:55.5]} 13... Ba6 {[%clk 0:01:57.4]} 14. b3 {[%clk 0:02:46.2]}
14... a4 {[%clk 0:01:57]} 15. Qd2 {[%clk 0:02:44.7]} 15... Bb5 {[%clk
0:01:54.9]} 16. f5 {[%clk 0:02:44.9]} 16... axb3 {[%clk 0:01:55]} 17. axb3
{[%clk 0:02:44.8]} 17... Ra8 {[%clk 0:01:53.4]} 18. Bh6 {[%clk 0:02:43.4]} 18...
Nde5 {[%clk 0:01:50.8]} 19. Bxg7 {[%clk 0:02:39.3]} 19... Kxg7 {[%clk 0:01:51]}
20. g5 {[%clk 0:02:40.2]} 20... Ra2 {[%clk 0:01:42.6]} 21. Nxe5 {[%clk
0:02:22.1]} 21... Nxe5 {[%clk 0:01:31.9]} 22. f6+ {[%clk 0:02:13.7]} 22... Kh8
{[%clk 0:01:31.5]} 23. Nc1 {[%clk 0:02:04.5]} 23... Ra7 {[%clk 0:01:26.1]} 24.
Rf4 {[%clk 0:01:52.9]} 24... exf6 {[%clk 0:01:22.3]} 25. gxf6 {[%clk 0:01:52.8]}
25... g5 {[%clk 0:01:22.8]} 26. Rf5 {[%clk 0:01:52.1]} 26... Bd7 {[%clk
0:01:22.9]} 27. Rxg5 {[%clk 0:01:42.1]} 27... Qxf6 {[%clk 0:01:21.6]} 28. Ne2
{[%clk 0:01:42.2]} 28... Ng6 {[%clk 0:01:06.3]} 29. Rf1 {[%clk 0:01:38.6]} 29...
Ra1 {[%clk 0:01:06.2]} 30. Rxa1 {[%clk 0:01:22.5]} 30... Qxa1+ {[%clk
0:01:07.1]} 31. Kh2 {[%clk 0:01:23.1]} 31... Qf6 {[%clk 0:01:06]} 32. Ng3 {[%clk
0:01:20.5]} 32... Nf4 {[%clk 0:01:03.4]} 33. Rf5 {[%clk 0:01:20]} 33... Bxf5
{[%clk 0:01:00.1]} 34. Qxf4 {[%clk 0:01:20.1]} 34... Qe5 {[%clk 0:00:49.6]} 35.
Qxe5+ {[%clk 0:01:04]} 35... dxe5 {[%clk 0:00:50.5]} 36. exf5 {[%clk 0:01:04.9]}
36... Kg7 {[%clk 0:00:50.5]} 37. Ne4 {[%clk 0:00:51.6]} 37... Ra8 {[%clk
0:00:50.8]} 38. Nxc5 {[%clk 0:00:26.6]} 38... Ra2 {[%clk 0:00:50.2]} 39. Nd7
{[%clk 0:00:12.8]} 39... Rxc2 {[%clk 0:00:41.6]} 40. f6+ {[%clk 0:00:12.5]}
40... Kg6 {[%clk 0:00:27.7]} 41. Kg3 {[%clk 0:00:07.6]} 41... Kf5 {[%clk
0:00:20.4]} 42. Bd5 {[%clk 0:00:05.9]} 42... Rc7 {[%clk 0:00:21]} 43. Nb6 {[%clk
0:00:04.1]} 43... Kxf6 {[%clk 0:00:21]} 44. Bc4 {[%clk 0:00:03.7]} 44... Kg6
{[%clk 0:00:16.1]} 45. Nd5 {[%clk 0:00:04.5]} 45... Rb7 {[%clk 0:00:16.7]} 46.
Kf3 {[%clk 0:00:04]} 46... f5 {[%clk 0:00:16.5]} 47. Ke3 {[%clk 0:00:04.4]}
47... Kg5 {[%clk 0:00:15.8]} 48. Kf3 {[%clk 0:00:04.2]} 48... Kh4 {[%clk
0:00:15.2]} 49. Ne3 {[%clk 0:00:03.8]} 49... Kg5 {[%clk 0:00:14.8]} 50. Nd5
{[%clk 0:00:02.7]} 50... Rg7 {[%clk 0:00:11]} 51. Nxb4 {[%clk 0:00:02.5]} 51...
Kh4 {[%clk 0:00:10.6]} 52. Nc6 {[%clk 0:00:02.5]} 52... Rg3+ {[%clk 0:00:11.3]}
53. Kf2 {[%clk 0:00:03.1]} 53... e4 {[%clk 0:00:10]} 54. dxe4 {[%clk 0:00:03.5]}
54... fxe4 {[%clk 0:00:10.9]} 55. Be6 {[%clk 0:00:04.2]} 55... Rg6 {[%clk
0:00:06.2]} 56. Nd4 {[%clk 0:00:04.8]} 56... Kg5 {[%clk 0:00:02.7]} 57. Ke3
{[%clk 0:00:05.3]} 57... Kf6 {[%clk 0:00:02.9]} 58. Kxe4 {[%clk 0:00:05.9]}
58... Rg1 {[%clk 0:00:03.8]} 59. Bg4 {[%clk 0:00:05.6]} 59... Re1+ {[%clk
0:00:04.2]} 60. Kd5 {[%clk 0:00:06]} 60... Re5+ {[%clk 0:00:04.8]} 61. Kc4
{[%clk 0:00:06.5]} 61... h5 {[%clk 0:00:05.4]} 62. Bf3 {[%clk 0:00:06.6]} 62...
Kg5 {[%clk 0:00:03.7]} 63. b4 {[%clk 0:00:07.1]} 63... Kh4 {[%clk 0:00:04.6]}
64. b5 {[%clk 0:00:05.3]} 64... Rxb5 {[%clk 0:00:02]} 65. Kxb5 {[%clk
0:00:04.4]} 65... Kxh3 {[%clk 0:00:02.9]} 66. Bxh5 {[%clk 0:00:05.1]} 66... Kg3
{[%clk 0:00:03.5]} 67. Kc4 {[%clk 0:00:04.9]} 67... Kf4 {[%clk 0:00:04.4]} 68.
Kd5 {[%clk 0:00:05]} 68... Kg5 {[%clk 0:00:05.3]} 69. Be8 {[%clk 0:00:05.2]}
69... Kf4 {[%clk 0:00:06.2]} 70. Ne6+ {[%clk 0:00:05.4]} 70... Ke3 {[%clk
0:00:07.1]} 71. Ke5 {[%clk 0:00:06]} 71... Kf3 {[%clk 0:00:07.6]} 72. Bc6+
{[%clk 0:00:06]} 72... Ke3 {[%clk 0:00:08.5]} 73. Be4 {[%clk 0:00:06.4]} 73...
Kd2 {[%clk 0:00:08.7]} 74. Kd4 {[%clk 0:00:07.3]} 74... Kc1 {[%clk 0:00:08.8]}
75. Kc3 {[%clk 0:00:07.4]} 75... Kd1 {[%clk 0:00:09.7]} 76. Nd4 {[%clk
0:00:07.7]} 76... Ke1 {[%clk 0:00:10.6]} 77. Kd3 {[%clk 0:00:08.3]} 77... Kf2
{[%clk 0:00:11.5]} 78. Kd2 {[%clk 0:00:08.5]} 78... Kg3 {[%clk 0:00:12.4]} 79.
Ke3 {[%clk 0:00:09.2]} 79... Kg4 {[%clk 0:00:13]} 80. Nf3 {[%clk 0:00:09.2]}
80... Kg3 {[%clk 0:00:13.7]} 81. Bd3 {[%clk 0:00:09.5]} 81... Kg4 {[%clk
0:00:14.6]} 82. Bc2 {[%clk 0:00:07.4]} 82... Kg3 {[%clk 0:00:14.4]} 83. Bf5
{[%clk 0:00:08.1]} 83... Kg2 {[%clk 0:00:14.5]} 84. Kf4 {[%clk 0:00:08.5]} 84...
Kf2 {[%clk 0:00:14.9]} 85. Nd4 {[%clk 0:00:08]} 85... Ke1 {[%clk 0:00:14]} 86.
Ke3 {[%clk 0:00:07.9]} 86... Kd1 {[%clk 0:00:14.6]} 87. Ne2 {[%clk 0:00:07.5]}
87... Ke1 {[%clk 0:00:15.3]} 88. Be4 {[%clk 0:00:07]} 88... Kf1 {[%clk
0:00:16.2]} 89. Bf3 {[%clk 0:00:04.9]} 89... Ke1 {[%clk 0:00:17.1]} 90. Nd4
{[%clk 0:00:04.8]} 90... Kf1 {[%clk 0:00:17.4]} 91. Ne2 {[%clk 0:00:04.7]} 91...
Ke1 {[%clk 0:00:17.9]} 92. Bg2 {[%clk 0:00:04.6]} 92... Kd1 {[%clk 0:00:18.3]}
93. Nd4 {[%clk 0:00:05.5]} 93... Kc1 {[%clk 0:00:18.5]} 94. Bf3 {[%clk
0:00:03.9]} 94... Kb2 {[%clk 0:00:19.4]} 95. Kd3 {[%clk 0:00:04]} 95... Ka3
{[%clk 0:00:19.7]} 96. Nc6 {[%clk 0:00:03.8]} 96... Kb3 {[%clk 0:00:19.2]} 97.
Bd5+ {[%clk 0:00:03.5]} 97... Ka4 {[%clk 0:00:19.9]} 98. Kc4 {[%clk 0:00:03.9]}
98... Ka3 {[%clk 0:00:20.8]} 99. Kc3 {[%clk 0:00:03.3]} 99... Ka4 {[%clk
0:00:21.4]} 100. Bc4 {[%clk 0:00:03.9]} 100... Ka3 {[%clk 0:00:21.8]} 101. Nb4
{[%clk 0:00:03.6]} 101... Ka4 {[%clk 0:00:22.5]} 102. Nc6 {[%clk 0:00:03.8]}
102... Ka3 {[%clk 0:00:23]} 103. Bb5 {[%clk 0:00:04.4]} 103... Ka2 {[%clk
0:00:23.5]} 104. Nb4+ {[%clk 0:00:05.1]} 104... Kb1 {[%clk 0:00:24]} 105. Nc2
{[%clk 0:00:05.3]} 105... Kc1 {[%clk 0:00:24.4]} 106. Be2 {[%clk 0:00:05.4]}
106... Kb1 {[%clk 0:00:24.7]} 107. Nb4 {[%clk 0:00:05.1]} 107... Kc1 {[%clk
0:00:22.9]} 108. Nd3+ {[%clk 0:00:05.5]} 108... Kb1 {[%clk 0:00:23.5]} 109. Kb3
{[%clk 0:00:06.1]} 109... Ka1 {[%clk 0:00:23.8]} 110. Bf3 {[%clk 0:00:06.3]}
110... Kb1 {[%clk 0:00:24.1]} 111. Bd1 {[%clk 0:00:06.6]} 111... Ka1 {[%clk
0:00:24.2]} 112. Kc3 {[%clk 0:00:05.8]} 112... Kb1 {[%clk 0:00:23.8]} 113. Bc2+
{[%clk 0:00:06.1]} 113... Ka1 {[%clk 0:00:24.4]} 114. Nb4 {[%clk 0:00:05.4]}
1/2-1/2

[Event "Early-Titled-Tuesday-Blitz-February-27-2024"]
[Site "Chess.com"]
[Date "2024.02.27"]
[Round "5"]
[White "Vaathi_Coming"]
[Black "jk13"]
[Result "1/2-1/2"]
[WhiteElo "2908"]
[BlackElo "2702"]
[TimeControl "180+1"]
[EndTime "8:57:11 PST"]
[Termination "Game drawn by stalemate"]

1. d4 {[%clk 0:03:00.6]} 1... Nf6 {[%clk 0:03:00.1]} 2. c4 {[%clk 0:02:59.6]}
2... e6 {[%clk 0:03:00.7]} 3. Nf3 {[%clk 0:02:57.9]} 3... Bb4+ {[%clk
0:03:01.3]} 4. Bd2 {[%clk 0:02:56.1]} 4... Bxd2+ {[%clk 0:03:01.5]} 5. Qxd2
{[%clk 0:02:57]} 5... O-O {[%clk 0:03:02]} 6. Nc3 {[%clk 0:02:56.3]} 6... d5
{[%clk 0:03:02.9]} 7. e3 {[%clk 0:02:50.7]} 7... Qe7 {[%clk 0:03:02]} 8. Bd3
{[%clk 0:02:46.7]} 8... dxc4 {[%clk 0:03:02.2]} 9. Bxc4 {[%clk 0:02:47.3]} 9...
Rd8 {[%clk 0:03:02.9]} 10. O-O {[%clk 0:02:42.5]} 10... c5 {[%clk 0:03:03.8]}
11. Qe2 {[%clk 0:02:42]} 11... Nc6 {[%clk 0:03:03.5]} 12. dxc5 {[%clk
0:02:39.1]} 12... Qxc5 {[%clk 0:03:04.4]} 13. Rac1 {[%clk 0:02:37.4]} 13... Bd7
{[%clk 0:03:03.6]} 14. a3 {[%clk 0:02:36.9]} 14... Rac8 {[%clk 0:03:00.3]} 15.
Ba2 {[%clk 0:02:30.1]} 15... Qe7 {[%clk 0:02:59.2]} 16. Bb1 {[%clk 0:02:23.6]}
16... a6 {[%clk 0:02:53.1]} 17. Ne4 {[%clk 0:02:22.3]} 17... Nxe4 {[%clk
0:02:42]} 18. Bxe4 {[%clk 0:02:23.2]} 18... Na5 {[%clk 0:02:42.6]} 19. Rxc8
{[%clk 0:02:02.8]} 19... Rxc8 {[%clk 0:02:41.2]} 20. Qe1 {[%clk 0:01:45.2]}
20... Nc6 {[%clk 0:01:56.7]} 21. Qc3 {[%clk 0:01:31]} 21... Nd8 {[%clk
0:01:42.6]} 22. Qd2 {[%clk 0:01:24]} 22... Bc6 {[%clk 0:01:41]} 23. Rc1 {[%clk
0:01:19.9]} 23... Rc7 {[%clk 0:01:30.3]} 24. Bxc6 {[%clk 0:01:15]} 24... Nxc6
{[%clk 0:01:26.4]} 25. Rd1 {[%clk 0:01:15.9]} 25... g6 {[%clk 0:01:25.3]} 26. h4
{[%clk 0:01:10.7]} 26... h5 {[%clk 0:01:22.5]} 27. g3 {[%clk 0:00:42.9]} 27...
Qf6 {[%clk 0:01:12.2]} 28. Kg2 {[%clk 0:00:41.3]} 28... Rc8 {[%clk 0:01:08.9]}
29. Rc1 {[%clk 0:00:25.4]} 29... Rd8 {[%clk 0:01:04.3]} 30. Qe2 {[%clk
0:00:20.9]} 30... Qf5 {[%clk 0:00:44.8]} 31. e4 {[%clk 0:00:20.6]} 31... Qf6
{[%clk 0:00:39.5]} 32. Rc3 {[%clk 0:00:15.8]} 32... Kg7 {[%clk 0:00:35.7]} 33.
Qe3 {[%clk 0:00:14.5]} 33... e5 {[%clk 0:00:33.9]} 34. Qb6 {[%clk 0:00:13.2]}
34... Rd7 {[%clk 0:00:33]} 35. Ng5 {[%clk 0:00:11.2]} 35... Nd4 {[%clk
0:00:23.1]} 36. Qa5 {[%clk 0:00:07]} 36... Nb5 {[%clk 0:00:16.3]} 37. Rc8 {[%clk
0:00:06]} 37... Nd6 {[%clk 0:00:09.2]} 38. Rb8 {[%clk 0:00:05.3]} 38... Nc4
{[%clk 0:00:07]} 39. Qc5 {[%clk 0:00:05]} 39... Nd6 {[%clk 0:00:07]} 40. b4
{[%clk 0:00:04.4]} 40... Qe7 {[%clk 0:00:05.4]} 41. a4 {[%clk 0:00:04.3]} 41...
Rc7 {[%clk 0:00:05]} 42. Qd5 {[%clk 0:00:04.8]} 42... Nc4 {[%clk 0:00:04.3]} 43.
b5 {[%clk 0:00:04.6]} 43... axb5 {[%clk 0:00:04.9]} 44. Qxb5 {[%clk 0:00:05.1]}
44... Nd6 {[%clk 0:00:04.7]} 45. Qb4 {[%clk 0:00:05.6]} 45... Qf6 {[%clk
0:00:04.7]} 46. Ra8 {[%clk 0:00:05]} 46... Rc2 {[%clk 0:00:04.4]} 47. Qb6 {[%clk
0:00:04.1]} 47... Re2 {[%clk 0:00:03.2]} 48. Qc5 {[%clk 0:00:03.2]} 48... Ra2
{[%clk 0:00:01.6]} 49. Ra7 {[%clk 0:00:02.5]} 49... Rb2 {[%clk 0:00:01.6]} 50.
Ra8 {[%clk 0:00:02.7]} 50... Ra2 {[%clk 0:00:02.1]} 51. a5 {[%clk 0:00:03.1]}
51... Ra4 {[%clk 0:00:02]} 52. Qe3 {[%clk 0:00:02.6]} 52... Rc4 {[%clk
0:00:01.8]} 53. Qb6 {[%clk 0:00:02.5]} 53... Rc2 {[%clk 0:00:02.1]} 54. Qe3
{[%clk 0:00:02.1]} 54... Rc6 {[%clk 0:00:02.7]} 55. a6 {[%clk 0:00:02.4]} 55...
Rxa6 {[%clk 0:00:02.9]} 56. Rb8 {[%clk 0:00:02.9]} 56... Ra4 {[%clk 0:00:02.7]}
57. Qc5 {[%clk 0:00:02.9]} 57... Rc4 {[%clk 0:00:03.2]} 58. Qe3 {[%clk 0:00:03]}
58... Rc3 {[%clk 0:00:03.6]} 59. Qxc3 {[%clk 0:00:02.8]} 59... Qe7 {[%clk
0:00:03.2]} 60. Qb2 {[%clk 0:00:02.6]} 60... f6 {[%clk 0:00:03.5]} 61. Ra8
{[%clk 0:00:03]} 61... fxg5 {[%clk 0:00:03.6]} 62. hxg5 {[%clk 0:00:03.9]} 62...
Qxg5 {[%clk 0:00:04]} 63. Qb6 {[%clk 0:00:03.7]} 63... Qf6 {[%clk 0:00:04.5]}
64. Qe3 {[%clk 0:00:03.7]} 64... Nc4 {[%clk 0:00:04.6]} 65. Qf3 {[%clk
0:00:03.8]} 65... Nd6 {[%clk 0:00:05.5]} 66. Qxf6+ {[%clk 0:00:03.6]} 66... Kxf6
{[%clk 0:00:06.4]} 67. Rd8 {[%clk 0:00:03.9]} 67... Nxe4 {[%clk 0:00:06.4]} 68.
Rb8 {[%clk 0:00:03.8]} 68... Nd6 {[%clk 0:00:06.7]} 69. Kf3 {[%clk 0:00:04.4]}
69... Ke6 {[%clk 0:00:07.3]} 70. Ke3 {[%clk 0:00:04.8]} 70... Kf6 {[%clk
0:00:07.7]} 71. Rd8 {[%clk 0:00:05]} 71... Ke6 {[%clk 0:00:08.2]} 72. Rg8 {[%clk
0:00:05.2]} 72... Kf6 {[%clk 0:00:08.6]} 73. Rb8 {[%clk 0:00:05.6]} 73... Ke6
{[%clk 0:00:09.1]} 74. Kd3 {[%clk 0:00:05.7]} 74... Kf6 {[%clk 0:00:09.4]} 75.
Kc3 {[%clk 0:00:05.7]} 75... Ne4+ {[%clk 0:00:09.5]} 76. Kc4 {[%clk 0:00:06]}
76... Nxf2 {[%clk 0:00:10.1]} 77. Rxb7 {[%clk 0:00:06.2]} 77... Ne4 {[%clk
0:00:10.5]} 78. Kd5 {[%clk 0:00:04.2]} 78... Nxg3 {[%clk 0:00:10.7]} 79. Rb3
{[%clk 0:00:04.7]} 79... Nf5 {[%clk 0:00:10.6]} 80. Ke4 {[%clk 0:00:04.4]} 80...
Nd6+ {[%clk 0:00:10]} 81. Kf3 {[%clk 0:00:04.5]} 81... Kf5 {[%clk 0:00:10.5]}
82. Rb8 {[%clk 0:00:04.7]} 82... Nf7 {[%clk 0:00:07.8]} 83. Rf8 {[%clk
0:00:04.1]} 83... Kf6 {[%clk 0:00:08.4]} 84. Ke4 {[%clk 0:00:04.4]} 84... Ke7
{[%clk 0:00:08.6]} 85. Rg8 {[%clk 0:00:04.2]} 85... Kf6 {[%clk 0:00:09.1]} 86.
Rf8 {[%clk 0:00:04.7]} 86... g5 {[%clk 0:00:09.5]} 87. Rg8 {[%clk 0:00:04.4]}
87... h4 {[%clk 0:00:09.5]} 88. Kf3 {[%clk 0:00:03.9]} 88... Kf5 {[%clk
0:00:09.2]} 89. Rf8 {[%clk 0:00:04.3]} 89... Kg6 {[%clk 0:00:09.4]} 90. Kg4
{[%clk 0:00:04.2]} 90... Nh6+ {[%clk 0:00:09.4]} 91. Kh3 {[%clk 0:00:04.6]}
91... Kh5 {[%clk 0:00:10]} 92. Re8 {[%clk 0:00:05]} 92... g4+ {[%clk 0:00:10.4]}
93. Kg2 {[%clk 0:00:05.5]} 93... Nf7 {[%clk 0:00:10.5]} 94. Rg8 {[%clk
0:00:05.7]} 94... Ng5 {[%clk 0:00:10.3]} 95. Re8 {[%clk 0:00:05.2]} 95... e4
{[%clk 0:00:10.1]} 96. Rg8 {[%clk 0:00:04.5]} 96... g3 {[%clk 0:00:10]} 97. Re8
{[%clk 0:00:02.2]} 97... Kg4 {[%clk 0:00:10.3]} 98. Rh8 {[%clk 0:00:02]} 98...
h3+ {[%clk 0:00:10.8]} 99. Kf1 {[%clk 0:00:02.6]} 99... e3 {[%clk 0:00:10.7]}
100. Ra8 {[%clk 0:00:02.1]} 100... h2 {[%clk 0:00:10.6]} 101. Kg2 {[%clk
0:00:01.4]} 101... e2 {[%clk 0:00:10.7]} 102. Ra4+ {[%clk 0:00:01.4]} 102... Kf5
{[%clk 0:00:10.9]} 103. Ra1 {[%clk 0:00:01.8]} 103... Kf4 {[%clk 0:00:11]} 104.
Re1 {[%clk 0:00:01.4]} 104... Ke3 {[%clk 0:00:11.5]} 105. Kxg3 {[%clk
0:00:01.5]} 105... Nf3 {[%clk 0:00:11.3]} 106. Rxe2+ {[%clk 0:00:02]} 106...
Kxe2 {[%clk 0:00:11.6]} 107. Kg2 {[%clk 0:00:02.9]} 107... Ke3 {[%clk
0:00:12.1]} 108. Kh1 {[%clk 0:00:02.7]} 108... Kf4 {[%clk 0:00:12.6]} 109. Kg2
{[%clk 0:00:03.3]} 109... Kg4 {[%clk 0:00:13.3]} 110. Kh1 {[%clk 0:00:03.7]}
110... Kf4 {[%clk 0:00:13.3]} 111. Kg2 {[%clk 0:00:04.1]} 111... Ke3 {[%clk
0:00:14.1]} 112. Kh1 {[%clk 0:00:04.7]} 112... Ke2 {[%clk 0:00:14.3]} 113. Kg2
{[%clk 0:00:05.3]} 113... Ke1 {[%clk 0:00:14.2]} 114. Kh1 {[%clk 0:00:06.1]}
114... Kf1 {[%clk 0:00:14.6]} 1/2-1/2

[Event "Early-Titled-Tuesday-Blitz-February-27-2024"]
[Site "Chess.com"]
[Date "2024.02.27"]
[Round "6"]
[White "laziestwin"]
[Black "Akewjon"]
[Result "1-0"]
[WhiteElo "2581"]
[BlackElo "2796"]
[TimeControl "180+1"]
[EndTime "8:59:10 PST"]
[Termination "laziestwin won by resignation"]

1. d4 {[%clk 0:03:00.9]} 1... Nf6 {[%clk 0:02:58.6]} 2. c4 {[%clk 0:03:00.6]}
2... e6 {[%clk 0:02:55.6]} 3. a3 {[%clk 0:03:00.5]} 3... d5 {[%clk 0:02:55.5]}
4. cxd5 {[%clk 0:02:59.9]} 4... exd5 {[%clk 0:02:56]} 5. Nc3 {[%clk 0:03:00.5]}
5... Bf5 {[%clk 0:02:55.2]} 6. Qb3 {[%clk 0:02:47.4]} 6... b6 {[%clk 0:02:51.9]}
7. Bf4 {[%clk 0:02:45.5]} 7... c6 {[%clk 0:02:46.8]} 8. e3 {[%clk 0:02:44.7]}
8... Bd6 {[%clk 0:02:45.5]} 9. Bxd6 {[%clk 0:02:42.5]} 9... Qxd6 {[%clk
0:02:46.4]} 10. Nf3 {[%clk 0:02:42.2]} 10... Nbd7 {[%clk 0:02:46.1]} 11. Qb4
{[%clk 0:02:37.9]} 11... c5 {[%clk 0:02:41.8]} 12. dxc5 {[%clk 0:02:37.9]} 12...
bxc5 {[%clk 0:02:42.2]} 13. Nb5 {[%clk 0:02:24.8]} 13... Qb6 {[%clk 0:02:39.3]}
14. Qf4 {[%clk 0:02:24.4]} 14... Qxb5 {[%clk 0:02:37.5]} 15. Bxb5 {[%clk
0:02:24.1]} 1-0

[Event "Early-Titled-Tuesday-Blitz-February-27-2024"]
[Site "Chess.com"]
[Date "2024.02.27"]
[Round "6"]
[White "Ishowmoves57"]
[Black "Misterfox120"]
[Result "0-1"]
[WhiteElo "2160"]
[BlackElo "2434"]
[TimeControl "180+1"]
[EndTime "8:59:41 PST"]
[Termination "Misterfox120 won by resignation"]

1. e4 {[%clk 0:02:49.6]} 1... c6 {[%clk 0:02:59.4]} 2. d4 {[%clk 0:02:41]} 2...
d5 {[%clk 0:03:00.3]} 3. Nc3 {[%clk 0:02:41.1]} 3... dxe4 {[%clk 0:02:52.7]} 4.
Nxe4 {[%clk 0:02:42]} 4... Nf6 {[%clk 0:02:53.5]} 5. Nxf6+ {[%clk 0:02:40.7]}
5... exf6 {[%clk 0:02:54.4]} 6. Nf3 {[%clk 0:02:38.5]} 6... Bd6 {[%clk
0:02:54.1]} 7. Bd3 {[%clk 0:02:38.4]} 7... O-O {[%clk 0:02:54.4]} 8. O-O {[%clk
0:02:38.4]} 8... Bg4 {[%clk 0:02:54.9]} 9. h3 {[%clk 0:02:38.9]} 9... Bh5 {[%clk
0:02:54.1]} 10. c3 {[%clk 0:02:36.7]} 10... Nd7 {[%clk 0:02:52.5]} 11. Be2
{[%clk 0:02:36.4]} 11... Re8 {[%clk 0:02:49.8]} 12. Qc2 {[%clk 0:02:34.3]} 12...
Nf8 {[%clk 0:02:47.9]} 13. Be3 {[%clk 0:02:26.7]} 13... Bc7 {[%clk 0:02:47.7]}
14. Ng5 {[%clk 0:01:53.4]} 14... Bg6 {[%clk 0:02:40.7]} 0-1

[Event "Early-Titled-Tuesday-Blitz-February-27-2024"]
[Site "Chess.com"]
[Date "2024.02.27"]
[Round "6"]
[White "dpopadic"]
[Black "shirovin"]
[Result "1-0"]
[WhiteElo "2350"]
[BlackElo "2082"]
[TimeControl "180+1"]
[EndTime "8:59:41 PST"]
[Termination "dpopadic won by resignation"]

1. e4 {[%clk 0:02:54.9]} 1... c5 {[%clk 0:02:59.1]} 2. Nc3 {[%clk 0:02:54.3]}
2... d6 {[%clk 0:02:58.9]} 3. f4 {[%clk 0:02:54.3]} 3... Nc6 {[%clk 0:02:57.3]}
4. Nf3 {[%clk 0:02:54.5]} 4... g6 {[%clk 0:02:57.7]} 5. Bc4 {[%clk 0:02:54.5]}
5... Bg7 {[%clk 0:02:57.9]} 6. d3 {[%clk 0:02:54.1]} 6... e6 {[%clk 0:02:57.7]}
7. O-O {[%clk 0:02:53.5]} 7... Nge7 {[%clk 0:02:57.2]} 8. Qe1 {[%clk 0:02:53.6]}
8... O-O {[%clk 0:02:45.2]} 9. f5 {[%clk 0:02:53.3]} 9... gxf5 {[%clk
0:02:41.6]} 10. Qh4 {[%clk 0:02:51.5]} 10... fxe4 {[%clk 0:02:40.4]} 11. dxe4
{[%clk 0:02:46.1]} 11... Ng6 {[%clk 0:02:39.7]} 12. Qh5 {[%clk 0:02:44.3]} 12...
Nce5 {[%clk 0:02:34.9]} 13. Nxe5 {[%clk 0:02:42.9]} 13... dxe5 {[%clk
0:02:25.8]} 14. Be3 {[%clk 0:02:40.8]} 14... Qh4 {[%clk 0:02:20.8]} 15. Qxh4
{[%clk 0:02:28.3]} 15... Nxh4 {[%clk 0:02:20]} 16. Bxc5 {[%clk 0:02:28.8]} 16...
Rd8 {[%clk 0:02:18.8]} 17. Rad1 {[%clk 0:02:28.7]} 17... Bd7 {[%clk 0:02:18.3]}
18. Be7 {[%clk 0:02:26.7]} 18... Bc6 {[%clk 0:02:11.7]} 1-0

[Event "Early-Titled-Tuesday-Blitz-February-27-2024"]
[Site "Chess.com"]
[Date "2024.02.27"]
[Round "6"]
[White "edgarhay012"]
[Black "Der_Balak_3Halak"]
[Result "1-0"]
[WhiteElo "2636"]
[BlackElo "2454"]
[TimeControl "180+1"]
[EndTime "9:00:10 PST"]
[Termination "edgarhay012 won by resignation"]

1. e4 {[%clk 0:03:00.9]} 1... c5 {[%clk 0:02:59]} 2. Nc3 {[%clk 0:03:01]} 2...
g6 {[%clk 0:02:58.2]} 3. d4 {[%clk 0:03:00.9]} 3... cxd4 {[%clk 0:02:59.1]} 4.
Qxd4 {[%clk 0:03:01.6]} 4... Nf6 {[%clk 0:02:59.2]} 5. Be3 {[%clk 0:03:01.9]}
5... Bg7 {[%clk 0:02:58]} 6. Qd2 {[%clk 0:03:01.3]} 6... Nc6 {[%clk 0:02:56.4]}
7. f3 {[%clk 0:03:01]} 7... O-O {[%clk 0:02:55.3]} 8. h4 {[%clk 0:03:00.9]} 8...
h5 {[%clk 0:02:51.7]} 9. O-O-O {[%clk 0:03:00.9]} 9... a6 {[%clk 0:02:47.8]} 10.
Nh3 {[%clk 0:03:01.4]} 10... b5 {[%clk 0:02:47.3]} 11. Ng5 {[%clk 0:02:59.5]}
11... b4 {[%clk 0:02:44.6]} 12. Nd5 {[%clk 0:02:59]} 12... e6 {[%clk 0:02:44.4]}
13. Bb6 {[%clk 0:02:53.2]} 13... Qe8 {[%clk 0:02:38.4]} 14. Nc7 {[%clk
0:02:52.5]} 14... Qe7 {[%clk 0:02:35.5]} 15. Nxa8 {[%clk 0:02:52.1]} 15... d5
{[%clk 0:02:23.7]} 16. Nc7 {[%clk 0:02:50.4]} 16... dxe4 {[%clk 0:02:18.7]} 17.
Qd6 {[%clk 0:02:45.3]} 17... exf3 {[%clk 0:01:50.2]} 18. Qxe7 {[%clk 0:02:38.8]}
18... Nxe7 {[%clk 0:01:51.1]} 19. gxf3 {[%clk 0:02:35]} 19... Bb7 {[%clk
0:01:49.3]} 20. Bc5 {[%clk 0:02:34.4]} 20... Rc8 {[%clk 0:01:42.9]} 21. Bxe7
{[%clk 0:02:34.3]} 21... Rxc7 {[%clk 0:01:42.8]} 22. Rd8+ {[%clk 0:02:34.1]} 1-0

[Event "Early-Titled-Tuesday-Blitz-February-27-2024"]
[Site "Chess.com"]
[Date "2024.02.27"]
[Round "6"]
[White "esrosenberg"]
[Black "RandomNoob04"]
[Result "0-1"]
[WhiteElo "2434"]
[BlackElo "2635"]
[TimeControl "180+1"]
[EndTime "9:00:26 PST"]
[Termination "RandomNoob04 won by resignation"]

1. d4 {[%clk 0:03:00]} 1... Nf6 {[%clk 0:02:59.6]} 2. Bg5 {[%clk 0:03:00.6]}
2... d5 {[%clk 0:02:58.2]} 3. Bxf6 {[%clk 0:02:56.8]} 3... exf6 {[%clk
0:02:59.1]} 4. e3 {[%clk 0:02:55.9]} 4... c6 {[%clk 0:02:56.2]} 5. Nd2 {[%clk
0:02:56]} 5... Bd6 {[%clk 0:02:56.5]} 6. g3 {[%clk 0:02:56.1]} 6... Be6 {[%clk
0:02:51]} 7. Bg2 {[%clk 0:02:56.4]} 7... f5 {[%clk 0:02:51.1]} 8. Ne2 {[%clk
0:02:56.6]} 8... Nd7 {[%clk 0:02:51.5]} 9. O-O {[%clk 0:02:57]} 9... h5 {[%clk
0:02:51.8]} 10. h4 {[%clk 0:02:56.8]} 10... g5 {[%clk 0:02:51.8]} 11. hxg5
{[%clk 0:02:56.9]} 11... h4 {[%clk 0:02:50.6]} 12. Nf4 {[%clk 0:02:56.9]} 12...
hxg3 {[%clk 0:02:48.7]} 13. fxg3 {[%clk 0:02:57]} 13... Qxg5 {[%clk 0:02:49.3]}
14. Kf2 {[%clk 0:02:47.3]} 14... Rg8 {[%clk 0:02:29.1]} 15. Qf3 {[%clk
0:02:46.3]} 15... Nf6 {[%clk 0:02:29.5]} 16. Ke2 {[%clk 0:02:22.3]} 16... Ne4
{[%clk 0:02:20.9]} 17. Nxe4 {[%clk 0:02:12]} 17... fxe4 {[%clk 0:02:21.8]} 18.
Qf2 {[%clk 0:02:12.9]} 18... Qxg3 {[%clk 0:02:18.7]} 19. Qxg3 {[%clk 0:02:13]}
19... Rxg3 {[%clk 0:02:19.6]} 20. Rf2 {[%clk 0:02:01.6]} 20... Bg4+ {[%clk
0:02:15.1]} 21. Kd2 {[%clk 0:01:59.6]} 21... Bxf4 {[%clk 0:02:14.7]} 0-1